fUSD/lending_fUSD_20260118
["ID","MTS","AMOUNT","RATE_DAILY","PERIOD"]
[402630882,1768729859174,-500.0,0.0001726,2]
[402630883,1768729859183,-501.5,0.0001726,2]
[402630884,1768729859192,-500.0,0.0001726,2]
[402630885,1768729859201,-500.0,0.0001726,2]
[402630886,1768729859210,-500.0,0.0001726,2]
[402630887,1768729859219,-500.0,0.0001726,2]
[402630888,1768729859228,-500.0,0.0001726,2]
[402630889,1768729859238,-500.0,0.0001726,2]
[402630890,1768729859248,-500.0,0.0001726,2]
[402630891,1768729859257,-500.0,0.0001726,2]
[402630892,1768729859267,-500.0,0.0001726,2]
[402630893,1768729859276,-500.0,0.0001726,2]
[402630894,1768729859285,-500.0,0.0001726,2]
[402630895,1768729859295,-550.86,0.0001726,2]
[402630896,1768729859304,-500.0,0.0001726,2]
[402630897,1768729859313,-500.0,0.0001726,2]
[402630898,1768729859322,-500.0,0.0001726,2]
[402630899,1768729859331,-500.0,0.0001726,2]
[402630900,1768729859340,-500.0,0.0001726,2]
[402630901,1768729859350,-500.0,0.0001726,2]
[402630902,1768729859359,-500.0,0.0001726,2]
[402630903,1768729859368,-500.0,0.0001726,2]
[402630904,1768729859377,-500.0,0.0001726,2]
[402630905,1768729859386,-500.0,0.0001726,2]
[402630906,1768729859395,-500.0,0.0001726,2]
[402630907,1768729859404,-550.76,0.0001726,2]
[402630908,1768729859413,-503.88,0.0001726,2]
[402630909,1768729859425,-500.0,0.0001726,2]
[402630910,1768729859434,-500.0,0.0001726,2]
[402630911,1768729859443,-3514.9,0.0001726,2]
[402630912,1768729859453,-500.0,0.0001726,2]
[402630913,1768729859462,-500.0,0.0001726,2]
[402630914,1768729859472,-530.86,0.0001726,2]
[402630915,1768729859481,-500.0,0.0001726,2]
[402630916,1768729859490,-500.0,0.0001726,2]
[402630917,1768729859499,-638.71,0.0001726,2]
[402630918,1768729859508,-500.0,0.0001726,2]
[402630919,1768729859517,-500.0,0.0001726,2]
[402630920,1768729859528,-500.0,0.0001726,2]
[402630921,1768729859537,-500.0,0.0001726,2]
[402630922,1768729859547,-500.0,0.0001726,2]
[402630923,1768729859556,-166.14471992,0.0001726,2]
[402630924,1768729859565,-500.0,0.0001726,2]
[402630925,1768729859574,-500.0,0.0001726,2]
[402630926,1768729859584,-500.0,0.0001726,2]
[402630927,1768729859593,-500.0,0.0001726,2]
[402630928,1768729859604,-500.0,0.0001726,2]
[402630929,1768729859613,-500.0,0.0001726,2]
[402630930,1768729859622,-500.0,0.0001726,2]
[402630931,1768729859631,-500.0,0.0001726,2]
[402630932,1768729859641,-500.0,0.0001726,2]
[402630933,1768729859650,-500.0,0.0001726,2]
[402630934,1768729859660,-566.36,0.0001726,2]
[402630935,1768729859669,-500.0,0.0001726,2]
[402630936,1768729859679,-500.0,0.0001726,2]
[402630937,1768729859689,-500.0,0.0001726,2]
[402630938,1768729859698,-500.0,0.0001726,2]
[402630939,1768729859707,-500.0,0.0001726,2]
[402630940,1768729859717,-500.0,0.0001726,2]
[402630941,1768729859726,-500.0,0.0001726,2]
[402630942,1768729859735,-628.99,0.0001726,2]
[402630943,1768729859745,-500.0,0.0001726,2]
[402630944,1768729859755,-500.0,0.0001726,2]
[402630945,1768729859764,-453.32599447,0.0001726,2]
[402630946,1768729859773,-1641.8,0.0001726,2]
[402630947,1768729859782,-500.0,0.0001726,2]
[402630948,1768729859791,-500.0,0.0001726,2]
[402630949,1768729859800,-500.0,0.0001726,2]
[402630950,1768729859809,-500.0,0.0001726,2]
[402630951,1768729859818,-500.0,0.0001726,2]
[402630952,1768729859827,-598.73028901,0.0001726,2]
[402630953,1768729859837,-500.0,0.0001726,2]
[402630954,1768729859846,-500.0,0.0001726,2]
[402630955,1768729859855,-500.0,0.0001726,2]
[402630956,1768729859864,-500.0,0.0001726,2]
[402630957,1768729859874,-185.88608262,0.0001726,2]
[402630958,1768729859883,-500.0,0.0001726,2]
[402630959,1768729859891,-569.89,0.0001726,2]
[402630960,1768729859900,-500.0,0.0001726,2]
[402630961,1768729859910,-500.0,0.0001726,2]
[402630962,1768729859919,-500.0,0.0001726,2]
[402630963,1768729859928,-150.0,0.0001726,2]
[402630964,1768729859938,-162.96710136,0.00017271,2]
[402630965,1768729859947,-150.0,0.0001728,2]
[402630966,1768729859957,-150.0,0.0001728,2]
[402630967,1768729859966,-800.0,0.000173,6]
[402630968,1768729859975,-2000.0,0.00017316,2]
[402630969,1768729859984,-1885.55865098,0.00017316,2]
[402630970,1768729859993,-3473.0,0.0001732,2]
[402630971,1768729860002,-1407.0,0.0001732,2]
[402630972,1768729860011,-615.0,0.0001732,2]
[402630973,1768729860020,-1354.189,0.0001732,2]
[402630974,1768729860029,-412.0,0.0001732,2]
[402630975,1768729860038,-1268.0,0.0001732,2]
[402630976,1768729860050,-1202.0,0.0001732,2]
[402630977,1768729860059,-915.0,0.0001732,2]
[402630978,1768729860068,-213.0,0.0001732,2]
[402630979,1768729860077,-6562.0,0.0001732,2]
[402630980,1768729860086,-4826.0,0.0001732,2]
[402630981,1768729860096,-569.897,0.0001732,2]
[402630982,1768729860105,-2271.0,0.00017322,2]
[402630983,1768729860114,-271.9,0.00017323,2]
[402630984,1768729860123,-150.0,0.00017337,2]
[402630985,1768729860132,-150.0,0.000174,2]
[402630986,1768729860142,-150.0,0.000174,2]
[402630987,1768729860152,-1100.0,0.000174,6]
[402630988,1768729860162,-4746.30463362,0.00017411,2]
[402630989,1768729860171,-150.0,0.00017432,2]
[402630990,1768729860181,-154.79146611,0.00017434,2]
[402630991,1768729860190,-271.9,0.00017459,2]
[402630992,1768729860199,-150.0,0.00017486,2]
[402630993,1768729860210,-761.65,0.00017491,2]
[402630994,1768729860219,-997.87,0.000175,7]
[402630995,1768729860228,-200.0,0.000175,6]
[402630996,1768729860238,-5888.0,0.00017502,2]
[402630997,1768729860248,-155.91836117,0.00017524,2]
[402630998,1768729860258,-150.0,0.00017526,2]
[402630999,1768729860267,-166.9,0.00017532,2]
[402631000,1768729860277,-500.0,0.00017534,2]
[402631001,1768729860286,-500.0,0.00017534,2]
[402631002,1768729860295,-500.0,0.00017534,2]
[402631003,1768729860304,-645.67,0.00017534,2]
[402631004,1768729860313,-500.0,0.00017534,2]
[402631005,1768729860322,-500.0,0.00017534,2]
[402631006,1768729860332,-500.0,0.00017534,2]
[402631007,1768729860342,-500.0,0.00017534,2]
[402631008,1768729860351,-500.0,0.00017534,2]
[402631009,1768729860360,-500.0,0.00017534,2]
[402631010,1768729860369,-500.0,0.00017534,2]
[402631011,1768729860379,-534.6,0.00017534,2]
[402631012,1768729860389,-500.0,0.00017534,2]
[402631013,1768729860399,-500.0,0.00017534,2]
[402631014,1768729860409,-500.0,0.00017534,2]
[402631015,1768729860419,-500.0,0.00017534,2]
[402631016,1768729860432,-543.68,0.00017534,2]
[402631017,1768729860441,-500.0,0.00017534,2]
[402631018,1768729860450,-621.39,0.00017534,2]
[402631019,1768729860459,-736.52,0.00017534,2]
[402631020,1768729860470,-500.0,0.00017534,2]
[402631021,1768729860479,-500.0,0.00017534,2]
[402631022,1768729860488,-1664.72,0.00017534,2]
[402631023,1768729860498,-500.0,0.00017534,2]
[402631024,1768729860507,-500.0,0.00017534,2]
[402631025,1768729860516,-500.0,0.00017534,2]
[402631026,1768729860525,-500.0,0.00017534,2]
[402631027,1768729860534,-1585.84,0.00017534,2]
[402631028,1768729860544,-500.0,0.00017534,2]
[402631029,1768729860553,-500.0,0.00017534,2]
[402631030,1768729860562,-500.0,0.00017534,2]
[402631031,1768729860572,-442.13151235,0.00017534,2]
[402631032,1768729860581,-280.03616481,0.00017534,2]
[402631033,1768729860591,-500.0,0.00017534,2]
[402631034,1768729860600,-500.0,0.00017534,2]
[402631035,1768729860610,-158.85423683,0.00017534,2]
[402631036,1768729860619,-500.0,0.00017534,2]
[402631037,1768729860628,-500.0,0.00017534,2]
[402631038,1768729860637,-500.0,0.00017534,2]
[402631039,1768729860646,-500.0,0.00017534,2]
[402631040,1768729860655,-500.0,0.00017534,2]
[402631041,1768729860666,-500.0,0.00017534,2]
[402631042,1768729860675,-500.0,0.00017534,2]
[402631043,1768729860684,-441.23232538,0.00017534,2]
[402631044,1768729860694,-500.0,0.00017534,2]
[402631045,1768729860703,-500.0,0.00017534,2]
[402631046,1768729860712,-500.0,0.00017534,2]
[402631047,1768729860721,-500.0,0.00017534,2]
[402631048,1768729860731,-589.25,0.00017534,2]
[402631049,1768729860741,-500.0,0.00017534,2]
[402631050,1768729860753,-500.0,0.00017534,2]
[402631051,1768729860763,-500.0,0.00017534,2]
[402631052,1768729860774,-500.0,0.00017534,2]
[402631053,1768729860784,-500.0,0.00017534,2]
[402631054,1768729860793,-500.0,0.00017534,2]
[402631055,1768729860804,-500.0,0.00017534,2]
[402631056,1768729860813,-500.0,0.00017534,2]
[402631057,1768729860823,-500.0,0.00017534,2]
[402631058,1768729860832,-500.0,0.00017534,2]
[402631059,1768729860842,-500.0,0.00017534,2]
[402631060,1768729860852,-500.0,0.00017534,2]
[402631061,1768729860861,-500.0,0.00017534,2]
[402631062,1768729860872,-500.0,0.00017534,2]
[402631063,1768729860882,-500.0,0.00017534,2]
[402631064,1768729860891,-500.0,0.00017534,2]
[402631065,1768729860900,-500.0,0.00017534,2]
[402631066,1768729860910,-570.60059675,0.00017534,2]
[402631067,1768729860919,-658.09,0.00017534,2]
[402631068,1768729860929,-500.0,0.00017534,2]
[402631069,1768729860939,-500.0,0.00017534,2]
[402631070,1768729860948,-500.0,0.00017534,2]
[402631071,1768729860958,-500.0,0.00017534,2]
[402631072,1768729860967,-500.0,0.00017534,2]
[402631073,1768729860977,-500.0,0.00017534,2]
[402631074,1768729860986,-500.0,0.00017534,2]
[402631075,1768729860996,-500.0,0.00017534,2]
[402631076,1768729861005,-500.0,0.00017534,2]
[402631077,1768729861015,-557.78,0.00017534,2]
[402631078,1768729861024,-500.0,0.00017534,2]
[402631079,1768729861034,-500.0,0.00017534,2]
[402631080,1768729861043,-500.0,0.00017534,2]
[402631081,1768729861052,-500.0,0.00017534,2]
[402631082,1768729861062,-500.0,0.00017534,2]
[402631083,1768729861071,-500.0,0.00017534,2]
[402631084,1768729861081,-500.0,0.00017534,2]
[402631085,1768729861091,-500.0,0.00017534,2]
[402631086,1768729861101,-500.0,0.00017534,2]
[402631087,1768729861111,-483.11059759,0.00017534,2]
[402631088,1768729861122,-161.20647173,0.00017534,2]
[402631089,1768729861131,-758.09,0.00017534,2]
[402631090,1768729861141,-500.0,0.00017534,2]
[402631091,1768729861150,-887.23,0.00017534,2]
[402631092,1768729861159,-500.0,0.00017534,2]
[402631093,1768729861168,-500.0,0.00017534,2]
[402631094,1768729861178,-500.0,0.00017534,2]
[402631095,1768729861187,-500.0,0.00017534,2]
[402631096,1768729861197,-500.0,0.00017534,2]
[402631097,1768729861206,-1034.92037349,0.00017534,2]
[402631098,1768729861215,-500.0,0.00017534,2]
[402631099,1768729861224,-500.0,0.00017534,2]
[402631100,1768729861233,-687.44,0.00017534,2]
[402631101,1768729861242,-500.0,0.00017534,2]
[402631102,1768729861252,-500.0,0.00017534,2]
[402631103,1768729861261,-500.0,0.00017534,2]
[402631104,1768729861270,-706.57,0.00017534,2]
[402631105,1768729861280,-500.0,0.00017534,2]
[402631106,1768729861289,-500.0,0.00017534,2]
[402631107,1768729861298,-500.0,0.00017534,2]
[402631108,1768729861307,-500.0,0.00017534,2]
[402631109,1768729861315,-500.0,0.00017534,2]
[402631110,1768729861326,-500.0,0.00017534,2]
[402631111,1768729861338,-500.0,0.00017534,2]
[402631112,1768729861347,-500.0,0.00017534,2]
[402631113,1768729861356,-559.26127746,0.00017534,2]
[402631114,1768729861366,-500.0,0.00017534,2]
[402631115,1768729861375,-500.0,0.00017534,2]
[402631116,1768729861385,-500.0,0.00017534,2]
[402631117,1768729861394,-625.64,0.00017534,2]
[402631118,1768729861403,-527.08,0.00017534,2]
[402631119,1768729861415,-500.0,0.00017534,2]
[402631120,1768729861424,-500.0,0.00017534,2]
[402631121,1768729861433,-287.56924808,0.00017534,2]
[402631122,1768729861445,-500.0,0.00017534,2]
[402631123,1768729861455,-500.0,0.00017534,2]
[402631124,1768729861464,-500.0,0.00017534,2]
[402631125,1768729861475,-500.0,0.00017534,2]
[402631126,1768729861484,-500.0,0.00017534,2]
[402631127,1768729861494,-500.0,0.00017534,2]
[402631128,1768729861504,-500.0,0.00017534,2]
[402631129,1768729861515,-500.0,0.00017534,2]
[402631130,1768729861526,-810.84,0.00017534,2]
[402631131,1768729861535,-500.0,0.00017534,2]
[402631132,1768729861544,-500.0,0.00017534,2]
[402631133,1768729861554,-500.0,0.00017534,2]
[402631134,1768729861563,-500.0,0.00017534,2]
[402631135,1768729861573,-500.0,0.00017534,2]
[402631136,1768729861582,-371.95055888,0.00017534,2]
[402631137,1768729861591,-500.0,0.00017534,2]
[402631138,1768729861600,-4843.65,0.00017534,2]
[402631139,1768729861609,-500.0,0.00017534,2]
[402631140,1768729861619,-500.0,0.00017534,2]
[402631141,1768729861629,-500.0,0.00017534,2]
[402631142,1768729861638,-500.0,0.00017534,2]
[402631143,1768729861648,-500.0,0.00017534,2]
[402631144,1768729861657,-279.534182,0.00017534,2]
[402631145,1768729861667,-500.0,0.00017534,2]
[402631146,1768729861676,-500.0,0.00017534,2]
[402631147,1768729861686,-500.0,0.00017534,2]
[402631148,1768729861696,-500.0,0.00017534,2]
[402631149,1768729861707,-579.08981172,0.00017534,2]
[402631150,1768729861718,-536.34,0.00017534,2]
[402631151,1768729861728,-500.0,0.00017534,2]
[402631152,1768729861738,-500.0,0.00017534,2]
[402631153,1768729861748,-603.10789331,0.00017534,2]
[402631154,1768729861758,-500.0,0.00017534,2]
[402631155,1768729861768,-500.0,0.00017534,2]
[402631156,1768729861778,-500.0,0.00017534,2]
[402631157,1768729861787,-586.42,0.00017534,2]
[402631158,1768729861797,-500.0,0.00017534,2]
[402631159,1768729861807,-500.0,0.00017534,2]
[402631160,1768729861817,-500.0,0.00017534,2]
[402631161,1768729861831,-500.0,0.00017534,2]
[402631162,1768729861841,-500.0,0.00017534,2]
[402631163,1768729861854,-500.0,0.00017534,2]
[402631164,1768729861863,-500.0,0.00017534,2]
[402631165,1768729861874,-500.0,0.00017534,2]
[402631166,1768729861884,-500.0,0.00017534,2]
[402631167,1768729861893,-500.0,0.00017534,2]
[402631168,1768729861902,-565.82,0.00017534,2]
[402631169,1768729861912,-199.7621583,0.00017534,2]
[402631170,1768729861923,-500.0,0.00017534,2]
[402631171,1768729861932,-500.0,0.00017534,2]
[402631172,1768729861941,-500.0,0.00017534,2]
[402631173,1768729861951,-500.0,0.00017534,2]
[402631174,1768729861960,-501.5,0.00017534,2]
[402631175,1768729861970,-500.0,0.00017534,2]
[402631176,1768729861979,-500.0,0.00017534,2]
[402631177,1768729861989,-500.0,0.00017534,2]
[402631178,1768729861998,-222.05323251,0.00017534,2]
[402631179,1768729862008,-500.0,0.00017534,2]
[402631180,1768729862017,-500.0,0.00017534,2]
[402631181,1768729862028,-500.0,0.00017534,2]
[402631182,1768729862037,-500.0,0.00017534,2]
[402631183,1768729862048,-500.0,0.00017534,2]
[402631184,1768729862058,-500.0,0.00017534,2]
[402631185,1768729862067,-500.0,0.00017534,2]
[402631186,1768729862077,-550.86,0.00017534,2]
[402631187,1768729862087,-469.25889048,0.00017534,2]
[402631188,1768729862096,-500.0,0.00017534,2]
[402631189,1768729862107,-500.0,0.00017534,2]
[402631190,1768729862116,-500.0,0.00017534,2]
[402631191,1768729862126,-500.0,0.00017534,2]
[402631192,1768729862136,-500.0,0.00017534,2]
[402631193,1768729862145,-500.0,0.00017534,2]
[402631194,1768729862155,-500.0,0.00017534,2]
[402631195,1768729862165,-500.0,0.00017534,2]
[402631196,1768729862174,-500.0,0.00017534,2]
[402631197,1768729862184,-500.0,0.00017534,2]
[402631198,1768729862193,-550.76,0.00017534,2]
[402631199,1768729862203,-503.88,0.00017534,2]
[402631200,1768729862213,-500.0,0.00017534,2]
[402631201,1768729862223,-500.0,0.00017534,2]
[402631202,1768729862234,-3514.9,0.00017534,2]
[402631203,1768729862243,-500.0,0.00017534,2]
[402631204,1768729862254,-500.0,0.00017534,2]
[402631205,1768729862263,-530.86,0.00017534,2]
[402631206,1768729862273,-500.0,0.00017534,2]
[402631207,1768729862283,-500.0,0.00017534,2]
[402631208,1768729862292,-638.71,0.00017534,2]
[402631209,1768729862301,-500.0,0.00017534,2]
[402631210,1768729862311,-500.0,0.00017534,2]
[402631211,1768729862321,-500.0,0.00017534,2]
[402631212,1768729862331,-500.0,0.00017534,2]
[402631213,1768729862340,-500.0,0.00017534,2]
[402631214,1768729862350,-500.0,0.00017534,2]
[402631215,1768729862359,-500.0,0.00017534,2]
[402631216,1768729862369,-500.0,0.00017534,2]
[402631217,1768729862378,-500.0,0.00017534,2]
[402631218,1768729862388,-500.0,0.00017534,2]
[402631219,1768729862397,-500.0,0.00017534,2]
[402631220,1768729862407,-500.0,0.00017534,2]
[402631221,1768729862417,-500.0,0.00017534,2]
[402631222,1768729862427,-566.36,0.00017534,2]
[402631223,1768729862438,-500.0,0.00017534,2]
[402631224,1768729862452,-500.0,0.00017534,2]
[402631225,1768729862462,-500.0,0.00017534,2]
[402631226,1768729862471,-500.0,0.00017534,2]
[402631227,1768729862482,-500.0,0.00017534,2]
[402631228,1768729862492,-500.0,0.00017534,2]
[402631229,1768729862503,-500.0,0.00017534,2]
[402631230,1768729862514,-628.99,0.00017534,2]
[402631231,1768729862523,-500.0,0.00017534,2]
[402631232,1768729862533,-500.0,0.00017534,2]
[402631233,1768729862543,-1641.8,0.00017534,2]
[402631234,1768729862552,-500.0,0.00017534,2]
[402631235,1768729862562,-500.0,0.00017534,2]
[402631236,1768729862572,-500.0,0.00017534,2]
[402631237,1768729862582,-500.0,0.00017534,2]
[402631238,1768729862592,-500.0,0.00017534,2]
[402631239,1768729862602,-612.81472691,0.00017534,2]
[402631240,1768729862611,-500.0,0.00017534,2]
[402631241,1768729862621,-500.0,0.00017534,2]
[402631242,1768729862631,-500.0,0.00017534,2]
[402631243,1768729862642,-500.0,0.00017534,2]
[402631244,1768729862652,-569.89,0.00017534,2]
[402631245,1768729862661,-500.0,0.00017534,2]
[402631246,1768729862671,-500.0,0.00017534,2]
[402631247,1768729862680,-500.0,0.00017534,2]
[402631248,1768729862690,-1000.0,0.00017534,2]
[402631249,1768729862699,-150.0,0.0001755,2]
[402631250,1768729862708,-1500.0,0.00017568,2]
[402631251,1768729862717,-1500.0,0.00017568,2]
[402631252,1768729862727,-1500.0,0.00017568,2]
[402631253,1768729862737,-1440.38824472,0.00017568,2]
[402631254,1768729862746,-863.75080239,0.00017568,2]
[402631255,1768729862756,-898.80157031,0.00017568,2]
[402631256,1768729862766,-1630.30097829,0.00017568,2]
[402631257,1768729862776,-1500.0,0.00017568,2]
[402631258,1768729862786,-1500.0,0.00017568,2]
[402631259,1768729862799,-1622.45048123,0.00017568,2]
[402631260,1768729862808,-1500.0,0.00017568,2]
[402631261,1768729862818,-1500.0,0.00017568,2]
[402631262,1768729862828,-1500.0,0.00017568,2]
[402631263,1768729862838,-504.10053469,0.00017568,2]
[402631264,1768729862848,-1500.0,0.00017568,2]
[402631265,1768729862857,-1373.13604917,0.00017568,2]
[402631266,1768729862867,-1500.0,0.00017568,2]
[402631267,1768729862877,-1074.55972892,0.00017568,2]
[402631268,1768729862887,-782.54716323,0.00017568,2]
[402631269,1768729862896,-1500.0,0.00017568,2]
[402631270,1768729862913,-1500.0,0.00017568,2]
[402631271,1768729862928,-1500.0,0.00017568,2]
[402631272,1768729862938,-1500.0,0.00017568,2]
[402631273,1768729862948,-1500.0,0.00017568,2]
[402631274,1768729862959,-1500.0,0.00017568,2]
[402631275,1768729862969,-1500.0,0.00017568,2]
[402631276,1768729862980,-1500.0,0.00017568,2]
[402631277,1768729862989,-1500.0,0.00017568,2]
[402631278,1768729862999,-1500.0,0.00017568,2]
[402631279,1768729863009,-162.96710136,0.00017586,2]
[402631280,1768729863019,-271.9,0.00017594,2]
[402631281,1768729863030,-200.0,0.000176,6]
[402631282,1768729863041,-150.0,0.00017621,2]
[402631283,1768729863051,-150.0,0.0001764,2]
[402631284,1768729863062,-150.0,0.0001764,2]
[402631285,1768729863073,-8511.66526342,0.0001764,2]
[402631286,1768729863083,-5888.0,0.00017644,2]
[402631287,1768729863093,-4746.30463362,0.00017656,2]
[402631288,1768729863104,-200.0,0.000177,6]
[402631289,1768729863114,-1743.0,0.00017707,2]
[402631290,1768729863124,-150.0,0.00017716,2]
[402631291,1768729863135,-271.9,0.00017729,2]
[402631292,1768729863145,-150.0,0.00017743,2]
[402631293,1768729863155,-761.65,0.00017765,2]
[402631294,1768729863165,-3501.0,0.00017783,2]
[402631295,1768729863175,-326.19,0.00017786,2]
[402631296,1768729863186,-200.0,0.000178,6]
[402631297,1768729863196,-5874.87989736,0.00017808,3]
[402631298,1768729863207,-500.0,0.00017808,2]
[402631299,1768729863217,-500.0,0.00017808,2]
[402631300,1768729863228,-500.0,0.00017808,2]
[402631301,1768729863239,-645.67,0.00017808,2]
[402631302,1768729863250,-500.0,0.00017808,2]
[402631303,1768729863260,-500.0,0.00017808,2]
[402631304,1768729863271,-500.0,0.00017808,2]
[402631305,1768729863281,-500.0,0.00017808,2]
[402631306,1768729863292,-500.0,0.00017808,2]
[402631307,1768729863302,-500.0,0.00017808,2]
[402631308,1768729863312,-500.0,0.00017808,2]
[402631309,1768729863323,-534.6,0.00017808,2]
[402631310,1768729863332,-500.0,0.00017808,2]
[402631311,1768729863343,-500.0,0.00017808,2]
[402631312,1768729863353,-500.0,0.00017808,2]
[402631313,1768729863364,-257.08437663,0.00017808,2]
[402631314,1768729863374,-543.68,0.00017808,2]
[402631315,1768729863384,-500.0,0.00017808,2]
[402631316,1768729863394,-621.39,0.00017808,2]
[402631317,1768729863405,-736.52,0.00017808,2]
[402631318,1768729863415,-500.0,0.00017808,2]
[402631319,1768729863427,-467.64194107,0.00017808,2]
[402631320,1768729863441,-1664.72,0.00017808,2]
[402631321,1768729863451,-500.0,0.00017808,2]
[402631322,1768729863462,-500.0,0.00017808,2]
[402631323,1768729863472,-321.31128509,0.00017808,2]
[402631324,1768729863483,-500.0,0.00017808,2]
[402631325,1768729863494,-1585.84,0.00017808,2]
[402631326,1768729863504,-500.0,0.00017808,2]
[402631327,1768729863515,-500.0,0.00017808,2]
[402631328,1768729863525,-419.00957537,0.00017808,2]
[402631329,1768729863535,-500.0,0.00017808,2]
[402631330,1768729863545,-500.0,0.00017808,2]
[402631331,1768729863555,-500.0,0.00017808,2]
[402631332,1768729863565,-500.0,0.00017808,2]
[402631333,1768729863575,-500.0,0.00017808,2]
[402631334,1768729863585,-500.0,0.00017808,2]
[402631335,1768729863595,-500.0,0.00017808,2]
[402631336,1768729863606,-500.0,0.00017808,2]
[402631337,1768729863616,-500.0,0.00017808,2]
[402631338,1768729863626,-500.0,0.00017808,2]
[402631339,1768729863637,-25000.0,0.00017808,3]
[402631340,1768729863648,-296.00530668,0.00017808,2]
[402631341,1768729863658,-500.0,0.00017808,2]
[402631342,1768729863669,-500.0,0.00017808,2]
[402631343,1768729863681,-492.1398225,0.00017808,2]
[402631344,1768729864040,-500.0,0.00017808,2]
[402631345,1768729864050,-589.25,0.00017808,2]
[402631346,1768729864060,-500.0,0.00017808,2]
[402631347,1768729864069,-500.0,0.00017808,2]
[402631348,1768729864080,-517.6468193,0.00017808,2]
[402631349,1768729864091,-500.0,0.00017808,2]
[402631350,1768729864102,-500.0,0.00017808,2]
[402631351,1768729864113,-500.0,0.00017808,2]
[402631352,1768729864124,-500.0,0.00017808,2]
[402631353,1768729864135,-596.53971654,0.00017808,2]
[402631354,1768729864146,-500.0,0.00017808,2]
[402631355,1768729864157,-397.21207331,0.00017808,2]
[402631356,1768729864167,-500.0,0.00017808,2]
[402631357,1768729864177,-500.0,0.00017808,2]
[402631358,1768729864186,-500.0,0.00017808,2]
[402631359,1768729864195,-500.0,0.00017808,2]
[402631360,1768729864205,-500.0,0.00017808,2]
[402631361,1768729864215,-500.0,0.00017808,2]
[402631362,1768729864225,-658.09,0.00017808,2]
[402631363,1768729864236,-500.0,0.00017808,2]
[402631364,1768729864246,-500.0,0.00017808,2]
[402631365,1768729864256,-500.0,0.00017808,2]
[402631366,1768729864266,-500.0,0.00017808,2]
[402631367,1768729864276,-500.0,0.00017808,2]
[402631368,1768729864285,-500.0,0.00017808,2]
[402631369,1768729864295,-500.0,0.00017808,2]
[402631370,1768729864305,-500.0,0.00017808,2]
[402631371,1768729864315,-500.0,0.00017808,2]
[402631372,1768729864325,-557.78,0.00017808,2]
[402631373,1768729864335,-500.0,0.00017808,2]
[402631374,1768729864344,-500.0,0.00017808,2]
[402631375,1768729864354,-500.0,0.00017808,2]
[402631376,1768729864364,-500.0,0.00017808,2]
[402631377,1768729864373,-500.0,0.00017808,2]
[402631378,1768729864383,-500.0,0.00017808,2]
[402631379,1768729864392,-346.68542403,0.00017808,2]
[402631380,1768729864402,-500.0,0.00017808,2]
[402631381,1768729864411,-287.0652963,0.00017808,2]